bitfinex/quotes_ETHUSD_20250623
["timestamp","ask_amount","ask_price","bid_price","bid_amount"]
[1750660138288,0.0598,2247.3,2246.9,0.0585]
[1750660138491,0.41678806,2247.2,2246.8,0.783]
[1750660138716,7.221,2247.4,2246.9,0.0585]
[1750660138889,0.41677705,2247.3,2246.9,0.0585]
[1750660139099,0.41677705,2247.2,2246.9,0.0585]
[1750660139315,7.221,2247.4,2246.9,0.0585]
[1750660139520,0.41679036,2247.3,2246.9,0.0585]
[1750660139822,0.41679074,2247.2,2246.9,0.0585]
[1750660140028,7.221,2247.4,2246.9,0.0585]
[1750660140223,0.41679076,2247.3,2246.8,0.783]
[1750660140534,0.41679076,2247.2,2246.9,0.0585]
[1750660140701,7.221,2247.4,2246.9,0.0585]
[1750660140907,0.41675397,2247.3,2246.9,0.0585]
[1750660141106,0.41675397,2247.2,2246.9,0.0585]
[1750660141329,7.2808,2247.4,2246.8,0.783]
[1750660141621,0.41674894,2247.3,2246.8,0.783]
[1750660141831,0.41676595,2247.2,2246.9,0.0585]
[1750660142007,7.221,2247.4,2246.9,0.0585]
[1750660142327,0.41676047,2247.3,2246.9,0.0585]
[1750660142527,0.41676047,2247.2,2246.8,1.1773]
[1750660142831,7.221,2247.4,2246.8,1.1773]
[1750660143022,7.6367282,2247.3,2246.8,1.1773]
[1750660143215,0.4167282,2247.2,2246.8,1.1773]
[1750660143525,7.22,2247.3,2246.8,1.1773]
[1750660143728,0.41672392,2247.2,2246.8,1.1773]
[1750660144029,7.22,2247.3,2246.8,1.1773]
[1750660144332,0.41674378,2247.2,2246.9,1.26288265]
[1750660144518,7.22,2247.4,2246.9,1.26288265]
[1750660144830,0.4167099,2247.3,2246.9,1.26288265]
[1750660145002,0.4167099,2247.2,2246.9,1.21838024]
[1750660145209,7.22,2247.4,2246.9,1.21838024]
[1750660145507,0.41670906,2247.3,2246.9,1.21838024]
[1750660145707,0.41670906,2247.2,2246.9,1.26288127]
[1750660145922,7.22,2247.4,2246.9,1.26288127]
[1750660146221,0.41701053,2247.3,2246.9,1.26288127]
[1750660146428,0.41701053,2247.2,2246.9,1.26288127]
[1750660146632,7.22,2247.4,2246.9,1.26288127]
[1750660146933,0.41701043,2247.3,2246.9,1.26288127]
[1750660147120,0.41701043,2247.2,2246.9,1.26288127]
[1750660147298,7.22,2247.4,2246.9,1.26288127]
[1750660147629,0.41701039,2247.3,2246.9,1.26288127]
[1750660147928,0.41701039,2247.2,2246.9,1.21838024]
[1750660148134,7.22,2247.4,2247.0,0.0585]
[1750660148295,8.26864063,2247.3,2246.7,3.16]
[1750660148496,0.0598,2247.0,2246.7,3.16]
[1750660148696,7.69583348,2246.9,2246.7,3.16]
[1750660148952,0.41703348,2246.8,2246.7,3.16]
[1750660149096,0.41703348,2246.8,2246.5,0.8024]
[1750660149302,7.2788,2246.9,2246.5,0.8024]
[1750660149534,0.41730028,2246.8,2246.5,0.8024]
[1750660149743,7.2788,2246.9,2246.5,0.8024]
[1750660149912,0.41729735,2246.8,2246.4,0.0585]
[1750660150107,0.41729735,2246.7,2246.4,0.0585]
[1750660150312,0.0598,2246.8,2246.3,0.7672]
[1750660150626,0.41717515,2246.7,2246.3,0.8257]
[1750660150951,0.41717989,2246.6,2246.3,0.8257]
[1750660151240,0.0598,2246.8,2246.3,0.8257]
[1750660151434,0.41732701,2246.7,2246.3,0.8257]
[1750660151635,0.41732701,2246.6,2246.3,0.8257]
[1750660151843,7.219,2246.9,2246.3,0.8257]
[1750660152159,0.41693698,2246.8,2246.3,0.8257]
[1750660152352,0.47673698,2246.7,2246.3,0.8257]
[1750660152654,0.41693698,2246.6,2246.3,0.8257]
[1750660152854,7.2776,2246.9,2246.3,0.7672]
[1750660153157,0.0586,2246.7,2246.3,0.7672]
[1750660153325,0.41693411,2246.6,2246.3,0.7672]
[1750660153527,0.0586,2246.7,2246.3,0.7672]
[1750660155654,0.4166122,2246.6,2246.3,0.7672]
[1750660155951,0.7639,2246.8,2246.0,0.7723]
[1750660156126,0.47522227,2246.7,2246.0,4.51633]
[1750660156326,0.41662227,2246.6,2246.0,4.51633]
[1750660156526,0.0586,2246.7,2246.0,4.51633]
[1750660156738,0.41662887,2246.6,2246.0,4.51633]
[1750660156931,0.0586,2246.7,2246.0,4.51633]
[1750660157132,0.41640234,2246.6,2246.0,4.51633]
[1750660157446,0.0586,2246.7,2246.1,0.509433]
[1750660157769,0.47500421,2246.6,2246.0,0.8301]
[1750660157981,0.0586,2246.6,2246.0,0.7723]
[1750660158159,0.47497862,2246.5,2246.0,0.7723]
[1750660158338,0.0586,2246.5,2246.0,0.8301]
[1750660160077,7.22,2246.4,2246.0,0.8301]
[1750660160441,7.22,2246.4,2246.0,0.7723]
[1750660160783,7.22,2246.4,2245.8,0.8524]
[1750660160784,7.2786,2246.4,2245.8,0.8524]
[1750660160975,0.7792,2246.3,2245.8,0.8524]
[1750660161185,0.8378,2246.3,2245.8,0.8524]
[1750660161872,0.8378,2246.3,2245.6,3.9957]
[1750660162048,0.8378,2246.3,2245.7,0.0578]
[1750660162248,0.41603556,2246.2,2245.7,0.0578]
[1750660162474,0.8378,2246.3,2245.6,0.7779]
[1750660162686,0.7537,2246.0,2245.5,1.0]
[1750660162993,7.63603725,2245.9,2245.5,1.0]
[1750660163149,0.47470133,2245.8,2245.5,1.0]
[1750660163352,0.7589,2245.6,2245.5,1.0]
[1750660163757,7.22,2245.9,2245.5,1.0]
[1750660163945,8.44412485,2245.8,2245.5,1.0578]
[1750660164146,8.028,2245.8,2245.5,1.0]
[1750660164467,8.0866,2245.8,2245.5,1.0]
[1750660164672,0.0586,2245.7,2245.5,1.0]
[1750660165550,8.0866,2245.8,2245.5,1.0]
[1750660165951,7.22,2245.7,2245.5,1.0]
[1750660170460,0.808,2245.8,2245.5,1.0]
[1750660170677,7.221,2245.7,2245.5,1.0]
[1750660172871,0.808,2245.8,2245.5,1.0]
[1750660173072,7.221,2245.7,2245.5,1.0]
[1750660173376,7.2796,2245.7,2245.5,1.0]
[1750660174986,0.8198,2245.6,2245.5,1.0]
[1750660175157,9.28000715,2245.6,2245.5,1.0]
[1750660175568,19.28000715,2245.6,2245.5,1.0]
[1750660175776,19.69477954,2245.6,2245.5,1.0]
[1750660175973,19.69477967,2245.6,2245.5,1.0]
[1750660178877,0.812,2244.4,2242.8,0.7839]
[1750660179204,0.7939,2243.8,2242.9,0.0578]
[1750660179374,0.7939,2243.8,2242.9,7.95398575]
[1750660179375,7.25,2243.7,2242.9,7.95398575]
[1750660179705,7.25,2243.7,2242.8,0.7839]
[1750660179706,0.7939,2243.8,2243.2,0.0578]
[1750660179879,7.252,2243.6,2243.2,0.0578]
[1750660180080,7.252,2243.6,2243.1,0.0578]
[1750660180475,0.7939,2244.1,2243.2,0.0578]
[1750660180677,7.252,2244.0,2243.6,0.0578]
[1750660180867,0.7939,2244.4,2243.6,0.0578]
[1750660180868,0.7939,2244.4,2243.6,0.79094072]
[1750660181100,7.253,2244.3,2243.8,0.7839]
[1750660181279,0.7939,2244.7,2244.1,0.0578]
[1750660181484,7.255,2244.9,2244.3,0.0578]
[1750660182067,7.256,2244.8,2244.3,0.04455442]
[1750660182370,11.4959,2245.1,2244.3,0.04455442]
[1750660182371,0.7939,2245.1,2244.5,0.0621]
[1750660182595,7.66959927,2245.0,2244.5,0.0621]
[1750660182900,7.256,2245.0,2244.5,0.0621]
[1750660183423,7.256,2245.0,2244.4,0.7839]
[1750660183628,2.741171,2245.3,2244.5,0.0621]
[1750660183780,0.41374012,2245.2,2244.7,0.0621]
[1750660183976,7.257,2245.2,2244.8,0.0621]
[1750660184211,7.257,2245.2,2244.7,0.04454305]
[1750660184917,7.257,2245.2,2244.8,0.0621]
[1750660185075,7.257,2245.2,2244.7,0.04454305]
[1750660185271,7.257,2245.2,2244.7,1.78054799]
[1750660185497,7.257,2245.2,2244.9,0.0621]
[1750660185696,7.257,2245.2,2244.8,0.0621]
[1750660186013,7.257,2245.2,2244.9,0.7839]
[1750660187113,7.257,2245.2,2245.0,0.0621]
[1750660187286,9.162,2245.5,2245.0,0.0621]
[1750660187487,9.162,2245.5,2245.0,0.04453872]
[1750660187797,9.162,2245.5,2245.1,0.0621]
[1750660188002,7.255,2245.5,2245.0,0.04453872]
[1750660188501,7.255,2245.5,2245.1,0.0621]
[1750660188811,7.255,2245.5,2245.0,0.0621]
[1750660188979,0.41440723,2245.4,2245.0,0.0621]
[1750660189405,7.255,2245.5,2245.0,0.0621]
[1750660189584,0.41440384,2245.4,2245.0,0.0621]
[1750660189789,0.0181,2245.4,2244.7,1.73600494]
[1750660190001,0.41456391,2245.3,2244.7,1.73600494]
[1750660190200,0.0181,2245.4,2244.7,1.73600494]
[1750660190407,0.41457032,2245.3,2244.7,1.73600494]
[1750660190615,0.0181,2245.4,2244.8,1.25820049]
[1750660190791,0.4145734,2245.3,2244.8,1.25820049]
[1750660190995,0.4145734,2245.3,2244.8,1.32030049]
[1750660191186,0.0181,2245.4,2244.8,1.32030049]
[1750660191524,0.41487619,2245.3,2244.8,1.32030049]
[1750660191711,0.0181,2245.4,2244.8,1.32030049]
[1750660191884,0.41500497,2245.3,2244.8,1.32030049]
[1750660192084,0.41500497,2245.2,2244.8,1.32030049]
[1750660192294,7.255,2245.5,2244.8,1.32030049]
[1750660192498,0.41499945,2245.4,2244.8,1.32030049]
[1750660192698,0.41499945,2245.3,2244.8,1.25820049]
[1750660192986,7.255,2245.5,2244.8,1.25820049]
[1750660193208,0.41499542,2245.4,2244.8,1.25820049]
[1750660193381,0.41499542,2245.3,2244.8,1.25820049]
[1750660193576,7.255,2245.5,2244.8,1.25820049]
[1750660193884,0.41499563,2245.4,2244.8,1.25820049]
[1750660194107,0.41499563,2245.3,2244.8,1.25820049]
[1750660194322,7.255,2245.5,2244.8,1.25820049]
[1750660194517,0.41508389,2245.4,2244.8,1.25820049]
[1750660194694,0.41508389,2245.3,2244.8,1.25820049]
[1750660194895,0.41508306,2245.2,2244.6,13.9439]
[1750660195090,10.7543,2245.4,2244.6,0.7839]
[1750660195297,0.6,2245.1,2244.6,0.7839]
[1750660197018,10.7543,2245.4,2244.6,0.7839]
[1750660197195,0.41518418,2245.3,2244.6,1.50204269]
[1750660197399,0.41518418,2245.2,2244.7,0.04454447]
[1750660197611,7.249,2245.4,2244.8,0.0621]
[1750660197788,7.249,2245.4,2244.6,1.50204269]
[1750660197789,0.41516839,2245.3,2244.6,1.50204269]
[1750660198118,0.41517834,2245.2,2244.7,0.34440427]
[1750660198306,7.249,2245.4,2244.7,0.34440427]
[1750660198513,0.41529332,2245.3,2244.7,0.0621]
[1750660198817,0.41529332,2245.2,2244.7,0.0621]
[1750660199024,0.41529248,2245.1,2244.6,0.7839]
[1750660199221,7.249,2245.4,2244.7,0.0621]
[1750660199522,0.41530237,2245.3,2244.7,0.0621]
[1750660199689,0.41530237,2245.2,2244.7,0.0621]
[1750660199891,0.41530237,2245.1,2244.7,0.0621]
[1750660200200,0.6,2245.1,2244.7,0.0621]
[1750660200519,0.41541378,2245.0,2244.7,0.0621]
[1750660200721,0.6,2245.1,2244.7,0.0621]
[1750660200933,7.2671,2245.4,2244.7,0.0621]
[1750660201239,0.41543087,2245.3,2244.7,0.0621]
[1750660201538,1.19483087,2245.2,2244.6,0.7839]
[1750660201893,0.0181,2245.0,2244.3,0.7676]
[1750660202025,0.41547173,2244.9,2244.3,0.7676]
[1750660202224,0.41547173,2244.8,2244.3,0.7676]
[1750660202545,0.0181,2245.0,2244.3,0.8297]
[1750660202750,0.41555736,2244.9,2244.3,0.8297]
[1750660202902,0.41555736,2244.8,2244.3,0.7676]
[1750660203102,7.25,2244.9,2244.3,0.7676]
[1750660203405,0.41562256,2244.8,2244.4,0.0445514]
[1750660203608,7.25,2244.9,2244.4,0.0445514]
[1750660203807,0.41561554,2244.8,2244.4,0.0445514]
[1750660204134,7.25,2244.9,2244.4,0.0445514]
[1750660204342,0.41561317,2244.8,2244.3,0.7676]
[1750660204528,7.25,2244.9,2244.3,0.7676]
[1750660204726,0.4156126,2244.8,2244.4,0.04454983]
[1750660204925,7.25,2244.9,2244.4,0.04454983]
[1750660205225,0.6,2244.7,2244.4,0.04454983]
[1750660205422,0.6,2244.7,2244.3,1.48417221]
[1750660205970,0.6,2244.7,2244.3,0.7676]
[1750660206885,7.25,2244.9,2244.3,0.7676]
[1750660207569,0.41563748,2244.8,2244.3,0.7676]
[1750660207769,7.25,2244.9,2244.3,0.8297]
[1750660208472,0.41564026,2244.8,2244.4,0.0621]
[1750660208625,0.41564026,2244.8,2244.3,0.7676]
[1750660208626,0.41563864,2244.8,2244.3,0.7676]
[1750660208825,7.25,2244.9,2244.4,0.0621]
[1750660209321,0.4156401,2244.8,2244.4,0.0621]
[1750660209538,0.4156401,2244.7,2244.4,0.0621]
[1750660209746,0.4156401,2244.6,2244.4,0.0621]
[1750660210049,7.25,2244.9,2244.3,0.8297]
[1750660210257,0.41696972,2244.8,2244.3,0.8297]
[1750660210459,0.41696972,2244.7,2244.4,0.0621]
[1750660210672,0.41696972,2244.6,2244.3,0.7676]
[1750660210836,7.25,2244.9,2244.3,0.7676]
[1750660210837,7.25,2244.9,2244.4,0.0621]
[1750660211042,0.4169508,2244.8,2244.4,0.0621]
[1750660211270,0.41694948,2244.7,2244.4,0.0621]
[1750660211432,7.25,2244.9,2244.3,0.7676]
[1750660211760,0.41694702,2244.8,2244.4,0.0621]
[1750660212007,0.41694702,2244.7,2244.3,0.7676]
[1750660212268,7.25,2244.9,2244.3,0.7676]
[1750660212480,0.41709161,2244.8,2244.3,0.7676]
[1750660212630,0.41709861,2244.7,2244.4,0.0591]
[1750660212830,0.41709861,2244.6,2244.4,0.0591]
[1750660213062,7.25,2244.9,2244.3,0.7676]
[1750660213263,7.25,2244.9,2244.5,0.0591]
[1750660213264,0.41709754,2244.8,2244.5,0.0591]
[1750660213545,0.41709754,2244.7,2244.3,0.7676]
[1750660213770,7.25,2244.9,2244.5,0.0591]
[1750660213934,0.41707908,2244.8,2244.5,0.0591]
[1750660214141,0.41707908,2244.7,2244.5,0.0591]
[1750660214370,7.25,2244.9,2244.5,0.0591]
[1750660214676,0.41705225,2244.8,2244.5,0.0591]
[1750660214879,0.41705225,2244.7,2244.6,0.8283]
[1750660215048,7.244,2245.2,2244.6,0.7692]
[1750660215384,0.41700719,2245.1,2244.7,0.0591]
[1750660215670,1.01699464,2245.0,2244.7,0.0591]
[1750660215833,0.41699464,2244.9,2244.7,0.0591]
[1750660216034,0.6,2245.0,2244.7,0.0591]
[1750660216232,0.41705455,2244.9,2244.7,0.0591]
[1750660216461,0.6,2245.0,2244.6,0.7692]
[1750660216647,0.41705398,2244.9,2244.6,0.7692]
[1750660216847,0.6,2245.0,2244.7,0.0591]
[1750660217026,0.41705217,2244.9,2244.3,10.7878]
[1750660217231,0.41705217,2244.8,2244.4,0.0591]
[1750660217464,0.6,2245.0,2244.3,0.7878]
[1750660217660,0.41718058,2244.9,2244.3,0.7878]
[1750660217865,0.41720709,2244.8,2244.3,0.7878]
[1750660218065,0.41720709,2244.7,2244.3,0.7878]
[1750660218271,7.66020709,2244.6,2244.0,0.7878]
[1750660218437,0.41720709,2244.5,2244.0,0.7878]
[1750660218637,0.41720709,2244.4,2244.0,0.83235929]
[1750660218837,7.243,2244.6,2244.0,0.83235929]
[1750660219064,0.41721802,2244.5,2244.0,0.83235929]
[1750660219261,0.41721802,2244.4,2244.0,0.83235929]
[1750660219473,7.243,2244.6,2244.0,1.23159522]
[1750660219665,0.41722541,2244.5,2244.0,1.23159522]
[1750660219968,0.41722457,2244.4,2244.0,1.23159522]
[1750660220169,7.243,2244.6,2244.0,1.23159522]
[1750660220463,0.41728248,2244.5,2244.0,1.23159522]
[1750660220663,0.41728357,2244.4,2244.0,1.18703593]
[1750660220864,7.243,2244.6,2244.0,0.7878]
[1750660221093,7.243,2244.6,2243.6,3.16]
[1750660221094,0.0181,2244.4,2243.6,3.16]
[1750660221238,0.41708877,2244.3,2243.6,3.16]
[1750660221553,11.9441,2244.4,2243.6,3.16]
[1750660221554,0.41702489,2244.2,2243.6,3.16]
[1750660221754,0.41702262,2244.1,2243.6,3.16]
[1750660221955,0.41702262,2244.0,2243.6,3.16]
[1750660222150,0.41702262,2243.9,2243.5,0.783]
[1750660222346,1.9441,2244.4,2243.5,0.783]
[1750660222551,0.41645663,2244.3,2243.6,0.0591]
[1750660222760,7.66645663,2244.2,2243.6,0.0591]
[1750660222942,0.41645663,2244.1,2243.6,0.0591]
[1750660223157,7.25,2244.2,2243.6,0.0591]
[1750660223356,0.41647592,2244.1,2243.8,0.0591]
[1750660223559,7.25,2244.2,2243.8,0.0591]
[1750660223760,0.41647732,2244.1,2243.8,0.0591]
[1750660223973,7.25,2244.2,2243.8,0.0591]
[1750660224173,0.41654289,2244.1,2243.8,0.0591]
[1750660224376,7.25,2244.2,2243.8,0.0591]
[1750660224588,0.41654602,2244.1,2243.8,0.0591]
[1750660224793,1.23330177,2244.0,2243.4,10.0]
[1750660224947,0.817,2244.0,2243.5,0.0591]
[1750660226380,7.25,2244.2,2243.4,0.0591]
[1750660226381,0.7858,2244.2,2243.4,0.0591]
[1750660226604,0.7858,2244.5,2243.6,0.0591]
[1750660226784,0.41633151,2244.4,2243.8,0.7665]
[1750660226951,0.41633151,2244.3,2243.9,0.0591]
[1750660227178,0.41632716,2244.2,2243.9,0.0591]
[1750660227378,0.6,2244.3,2243.9,0.0591]
[1750660227579,0.41632858,2244.2,2243.9,0.0591]
[1750660227777,0.6,2244.3,2243.9,0.0591]
[1750660228126,0.41632648,2244.2,2243.9,0.0591]
[1750660228308,0.6,2244.3,2243.9,0.0591]
[1750660228506,0.416397,2244.2,2243.9,0.0591]
[1750660228710,0.6,2244.3,2243.9,0.0591]
[1750660228911,0.41636677,2244.2,2243.9,0.0591]
[1750660229111,0.6,2244.3,2243.9,0.0591]
[1750660229306,0.41635569,2244.2,2243.9,0.0591]
[1750660229520,0.6,2244.3,2243.9,0.0591]
[1750660229720,0.7862,2244.1,2243.6,14.71678266]
[1750660229925,0.7862,2244.1,2243.6,10.0]
[1750660230126,1.3643,2244.3,2243.7,0.04456607]
[1750660230330,0.41639452,2244.2,2243.7,0.04456607]
[1750660230627,1.3643,2244.3,2243.7,0.04456607]
[1750660230924,0.41640386,2244.2,2243.7,0.04456607]
[1750660231125,1.3643,2244.3,2243.6,10.0]
[1750660231327,0.41637447,2244.2,2243.6,10.0]
[1750660231622,0.41637447,2244.1,2243.6,10.0]
[1750660231799,1.3643,2244.3,2243.6,10.0]
[1750660232126,0.41637128,2244.2,2243.5,3.16]
[1750660232429,0.41637128,2244.1,2243.7,0.0591]
[1750660232726,0.7643,2244.3,2243.9,0.0591]
[1750660232727,8.0193,2244.3,2243.9,0.0591]
[1750660232910,0.41631573,2244.2,2243.9,0.0591]
[1750660233090,0.41628018,2244.1,2243.9,0.0591]
[1750660233287,8.0193,2244.3,2243.9,0.0591]
[1750660233491,0.4162987,2244.2,2243.9,0.0591]
[1750660233724,0.4162987,2244.1,2243.9,0.0591]
[1750660233930,0.6,2244.1,2243.9,0.0591]
[1750660234530,0.7601,2244.5,2243.9,0.0591]
[1750660234734,7.255,2244.3,2243.9,0.0591]
[1750660234915,0.41628179,2244.2,2243.9,0.0591]
[1750660235115,0.41628179,2244.1,2243.9,0.0591]
[1750660235426,7.255,2244.3,2243.9,0.0591]
[1750660235636,0.41629823,2244.2,2243.8,0.8122]
[1750660235846,7.253,2244.3,2243.8,0.8122]
[1750660235999,0.41630693,2244.2,2243.8,1.2138766]
[1750660236339,0.809,2244.7,2244.0,0.0591]
[1750660236499,0.41633303,2244.6,2243.8,0.8122]
[1750660236695,0.4163273,2244.5,2243.9,0.0591]
[1750660236930,0.4163273,2244.4,2243.9,0.0591]
[1750660237134,0.4163273,2244.3,2243.8,0.8122]
[1750660237336,0.0181,2244.6,2243.9,0.0591]
[1750660237535,0.41638778,2244.5,2243.9,0.0591]
[1750660237733,0.41640551,2244.4,2243.8,1.5360997]
[1750660237933,0.41640551,2244.3,2243.8,1.5360997]
[1750660238119,0.809,2244.7,2243.9,0.80695746]
[1750660238324,0.4164104,2244.6,2243.9,0.80695746]
[1750660238513,0.4164104,2244.5,2243.9,0.80695746]
[1750660238715,0.4164104,2244.4,2243.9,0.80695746]
[1750660238929,0.41635954,2244.3,2243.9,0.80695746]
[1750660239125,0.6,2244.5,2243.9,0.7624]
[1750660239329,0.41643067,2244.4,2243.9,1.28226713]
[1750660239509,0.41643067,2244.3,2243.9,1.28226713]
[1750660239856,0.6,2244.5,2243.9,1.28226713]
[1750660240017,0.416444,2244.4,2243.9,1.28226713]
[1750660240223,0.416444,2244.3,2243.9,1.28226713]
[1750660240421,0.6,2244.5,2243.9,1.28226713]
[1750660240603,0.41644717,2244.4,2243.9,1.28226713]
[1750660240803,0.41644717,2244.3,2243.9,1.28226713]
[1750660241033,0.6,2244.5,2243.9,1.28226713]
[1750660241236,0.41659602,2244.4,2243.9,1.28226713]
[1750660241428,0.6,2244.5,2243.9,0.7624]
[1750660241429,0.41659602,2244.3,2243.9,0.7624]
[1750660241635,0.6,2244.5,2243.9,3.9224]
[1750660241807,0.41659853,2244.4,2243.9,3.9224]
[1750660242014,0.41659853,2244.3,2243.9,3.9224]
[1750660242215,0.6,2244.5,2243.9,3.9224]
[1750660242437,0.41658384,2244.4,2243.9,3.9224]
[1750660242742,0.41658094,2244.3,2243.9,3.9224]
[1750660242918,0.41663861,2244.2,2243.9,3.9224]
[1750660243105,0.6,2244.5,2243.9,3.9224]
[1750660243440,0.41663698,2244.4,2243.9,3.9224]
[1750660243610,0.41663698,2244.3,2243.9,3.9224]
[1750660243811,0.41663698,2244.2,2243.9,3.9224]
[1750660244025,0.6,2244.5,2243.9,5.50104641]
[1750660244238,0.41673087,2244.4,2243.9,5.50104641]
[1750660244406,0.41673087,2244.3,2243.9,5.50104641]
[1750660244601,0.6,2244.5,2243.9,5.50104641]
[1750660244833,0.41673449,2244.4,2243.9,5.50104641]
[1750660245028,0.6,2244.5,2244.0,0.66705208]
[1750660245230,0.41673284,2244.5,2244.3,7.87336744]
[1750660245434,0.8208,2245.0,2244.3,7.91791661]
[1750660245655,0.8208,2245.0,2244.3,7.87336744]
[1750660246159,0.8208,2245.0,2244.4,0.04454911]
[1750660246458,0.8208,2245.0,2244.4,0.91833076]
[1750660247541,0.8208,2245.0,2244.4,0.87378165]
[1750660247739,0.8208,2245.0,2244.5,0.0579]
[1750660247941,0.8208,2245.0,2244.3,0.0579]
[1750660248726,9.2001,2245.3,2244.4,0.8316]
[1750660248918,9.2001,2245.3,2244.5,0.0579]
[1750660250348,9.2001,2245.3,2244.5,0.10244903]
[1750660250516,9.2001,2245.3,2244.6,0.0579]
[1750660251735,0.55,2245.2,2244.4,0.8316]
[1750660252050,0.8267,2245.0,2244.4,0.8316]
[1750660253732,0.55,2245.4,2244.5,0.7662]
[1750660253733,0.7827,2245.4,2244.5,0.7662]
[1750660253932,0.5681,2245.3,2244.5,0.7662]
[1750660254767,1.933,2245.2,2244.5,0.7662]
[1750660255465,1.933,2245.2,2244.6,0.04454645]
[1750660255765,1.933,2245.2,2244.6,0.57117332]
[1750660256064,1.933,2245.2,2244.5,0.7662]
[1750660256962,1.9511,2245.2,2244.5,0.7662]
[1750660257365,0.6,2245.0,2244.5,0.7662]
[1750660257565,0.41631685,2244.9,2244.5,0.8241]
[1750660257872,0.6,2245.0,2244.5,0.8241]
[1750660258066,0.41631639,2244.9,2244.5,0.8241]
[1750660258363,0.6181,2245.0,2244.5,0.8241]
[1750660258594,0.41631615,2244.9,2244.5,0.8241]
[1750660258756,1.3801,2245.0,2244.5,0.8241]
[1750660259099,0.41630369,2244.9,2244.5,0.8241]
[1750660259296,1.3801,2245.0,2244.5,0.8241]
[1750660259508,0.41630528,2244.9,2244.5,0.8241]
[1750660259650,1.3801,2245.0,2244.5,0.8241]
[1750660259856,0.41631904,2244.9,2244.5,0.8241]
[1750660260056,1.3801,2245.0,2244.5,0.8241]
[1750660260256,0.6,2245.0,2244.6,0.0579]
[1750660260491,1.6157,2245.9,2245.1,0.0579]
[1750660260656,0.41615561,2245.8,2245.2,0.92983818]
[1750660260857,0.41615561,2245.7,2245.2,0.8274]
[1750660261101,0.0181,2245.4,2244.9,0.8273]
[1750660261306,0.41615561,2245.3,2244.9,0.8273]
[1750660261457,9.2061,2245.4,2244.9,0.8273]
[1750660261654,0.41626969,2245.3,2244.9,0.8273]
[1750660261853,0.41626969,2245.2,2244.9,0.8273]
[1750660262057,9.2061,2245.4,2244.9,0.8273]
[1750660262257,0.41627547,2245.3,2244.9,0.8273]
[1750660262487,9.2061,2245.4,2244.9,0.8273]
[1750660262666,0.41612062,2245.3,2244.9,0.8273]
[1750660262867,2.694,2245.8,2244.8,0.7625]
[1750660263079,10.41619476,2245.7,2244.9,0.80703947]
[1750660263287,0.41618201,2245.6,2245.1,4.45413426]
[1750660263607,1.933,2245.8,2245.2,1.25244783]
[1750660263775,0.41613633,2245.7,2245.2,0.48994783]
[1750660264002,1.933,2245.8,2245.3,0.8759344]
[1750660264605,1.933,2245.8,2245.3,0.8314]
[1750660264894,10.0,2246.2,2245.4,0.8047]
[1750660264895,7.259,2246.1,2245.4,0.8047]
[1750660265195,1.933,2246.2,2245.5,10.8047]
[1750660265510,1.933,2246.2,2245.7,0.8047]
[1750660265872,0.0181,2246.1,2245.1,1.339005]
[1750660266067,0.7785,2246.0,2245.5,0.8239]
[1750660266267,0.7966,2246.0,2245.5,0.8239]
[1750660266488,1.9511,2246.2,2245.5,0.8239]
[1750660267259,10.55,2246.1,2245.2,0.7649]
[1750660267464,10.55,2246.1,2245.2,0.8228]
[1750660267781,10.5681,2246.1,2245.2,0.8228]
[1750660268797,0.7969,2246.0,2245.3,0.0579]
[1750660270569,0.761,2246.3,2245.5,0.0579]
[1750660270770,0.0181,2246.2,2244.9,4.45444339]
[1750660271011,0.55,2245.8,2245.2,0.8236]
[1750660271200,0.55,2245.8,2244.9,0.8236]
[1750660271201,0.0181,2245.7,2244.9,0.8236]
[1750660272182,0.832,2245.7,2245.0,0.0579]
[1750660274521,10.832,2245.7,2245.0,0.0579]
[1750660276317,10.8501,2245.7,2245.0,0.0579]
[1750660278912,0.4160982,2245.6,2245.0,0.0579]
[1750660279116,0.4160982,2245.6,2244.9,0.8236]
[1750660279117,0.756,2245.4,2244.9,0.8236]
[1750660279346,0.0181,2245.2,2244.6,0.0564]
[1750660279544,7.255,2245.1,2244.6,0.0564]
[1750660279745,7.255,2245.1,2244.5,0.8128]
[1750660279920,7.255,2245.1,2244.6,0.0564]
[1750660280121,10.756,2245.4,2244.6,0.0564]
[1750660280351,7.67319813,2245.3,2244.6,0.0564]
[1750660280645,0.41620812,2245.2,2244.7,0.0564]
[1750660280850,7.257,2245.3,2244.7,0.0564]
[1750660281050,0.41621332,2245.2,2244.6,2.0471245]
[1750660281215,7.257,2245.3,2244.7,0.0564]
[1750660281416,0.41621054,2245.2,2244.7,0.0564]
[1750660281618,0.41630893,2245.1,2244.7,0.0564]
[1750660281839,7.257,2245.3,2244.7,0.0564]
[1750660282038,0.41631423,2245.2,2244.7,0.0564]
[1750660282354,0.41631423,2245.1,2244.7,0.0564]
[1750660282650,7.257,2245.3,2244.7,0.0564]
[1750660282948,0.41631258,2245.2,2244.6,2.0471245]
[1750660283114,7.257,2245.3,2244.6,2.0471245]
[1750660283311,0.41631433,2245.2,2244.5,3.9728]
[1750660283560,0.41631433,2245.1,2244.5,3.9728]
[1750660283752,7.257,2245.3,2244.6,10.0]
[1750660283961,0.41631187,2245.2,2244.6,10.0]
[1750660284124,0.41631187,2245.1,2244.6,10.0]
[1750660284319,0.5681,2245.2,2244.5,3.9728]
[1750660284576,0.7737,2245.0,2244.5,3.16]
[1750660284906,0.41643239,2244.9,2244.5,3.16]
[1750660285155,0.7737,2245.0,2244.5,3.16]
[1750660285449,0.41633923,2244.9,2244.5,3.16]
[1750660285625,0.7737,2245.0,2244.5,3.16]
[1750660286731,0.55,2244.9,2244.3,0.8147]